[Event "Titled Tuesday Blitz October 31 Late 2023"]
[White "Kawuma, Patrick"]
[Black "Hambleton, Aman"]
[WhiteFideId "10000127"]
[BlackFideId "2606577"]
[WhiteElo "2406"]
[BlackElo "2784"]
[Result "0-1"]
[Round "3"]
[TimeControl "180+1"]
[Date "2023.10.31"]
[WhiteClock "0:00:06"]
[BlackClock "0:00:03"]
[Board "131"]

1. Nf3 {[%clk 0:02:59]}  d5 {[%clk 0:02:59]} 2. g3 {[%clk 0:02:59]}  c6 {[%clk 0:03:00]} 3. Bg2 {[%clk 0:02:59]}  Nf6 {[%clk 0:03:01]} 4. O-O {[%clk 0:02:57]}  Bf5 {[%clk 0:03:01]} 5. c4 {[%clk 0:02:57]}  Bxb1 {[%clk 0:03:01]} 6. Rxb1 {[%clk 0:02:56]}  e6 {[%clk 0:03:02]} 7. cxd5 {[%clk 0:02:42]}  cxd5 {[%clk 0:03:01]} 8. Qb3 {[%clk 0:02:38]}  Qb6 {[%clk 0:02:59]} 9. Qxb6 {[%clk 0:02:36]}  axb6 {[%clk 0:03:00]} 10. a3 {[%clk 0:02:35]}  Nc6 {[%clk 0:02:59]} 11. d3 {[%clk 0:02:35]}  Be7 {[%clk 0:02:46]} 12. Be3 {[%clk 0:02:35]}  Bc5 {[%clk 0:02:47]} 13. Bf4 {[%clk 0:01:59]}  O-O {[%clk 0:02:45]} 14. Rbc1 {[%clk 0:01:56]}  h6 {[%clk 0:02:33]} 15. Ne5 {[%clk 0:01:45]}  g5 {[%clk 0:01:52]} 16. Nxc6 {[%clk 0:01:34]}  gxf4 {[%clk 0:01:52]} 17. Ne5 {[%clk 0:01:14]}  fxg3 {[%clk 0:01:50]} 18. hxg3 {[%clk 0:01:15]}  Bd4 {[%clk 0:01:49]} 19. Nf3 {[%clk 0:01:11]}  Bxb2 {[%clk 0:01:47]} 20. Rb1 {[%clk 0:01:12]}  Bxa3 {[%clk 0:01:47]} 21. Rxb6 {[%clk 0:01:12]}  Ra7 {[%clk 0:01:35]} 22. Rfb1 {[%clk 0:01:10]}  Rb8 {[%clk 0:01:33]} 23. Ne5 {[%clk 0:01:03]}  Bc5 {[%clk 0:01:15]} 24. Nc6 {[%clk 0:00:43]}  Bxb6 {[%clk 0:01:12]} 25. Nxb8 {[%clk 0:00:43]}  Bc7 {[%clk 0:00:36]} 26. Rc1 {[%clk 0:00:41]}  Bxb8 {[%clk 0:00:21]} 27. Rc8+ {[%clk 0:00:42]}  Kg7 {[%clk 0:00:22]} 28. Rxb8 {[%clk 0:00:42]}  Nd7 {[%clk 0:00:19]} 29. Rd8 {[%clk 0:00:39]}  b5 {[%clk 0:00:15]} 30. e4 {[%clk 0:00:40]}  dxe4 {[%clk 0:00:15]} 31. dxe4 {[%clk 0:00:37]}  b4 {[%clk 0:00:14]} 32. Bf1 {[%clk 0:00:37]}  b3 {[%clk 0:00:12]} 33. Bd3 {[%clk 0:00:38]}  Nc5 {[%clk 0:00:10]} 34. Kg2 {[%clk 0:00:31]}  Nxd3 {[%clk 0:00:04]} 35. Rxd3 {[%clk 0:00:31]}  Rb7 {[%clk 0:00:05]} 36. Rd1 {[%clk 0:00:31]}  b2 {[%clk 0:00:05]} 37. Rb1 {[%clk 0:00:31]}  Rb3 {[%clk 0:00:04]} 38. Kf1 {[%clk 0:00:31]}  Kf6 {[%clk 0:00:04]} 39. Ke2 {[%clk 0:00:32]}  Ke5 {[%clk 0:00:04]} 40. f3 {[%clk 0:00:32]}  Kd4 {[%clk 0:00:03]} 41. Rd1+ {[%clk 0:00:06]}  Kc3 {[%clk 0:00:03]} 0-1


[Site "https://www.chess.com"]

[Event "Titled Tuesday Blitz October 31 Late 2023"]
[White "Sailer, Mike"]
[Black "Djordjevic, Vuk"]
[WhiteFideId "2012901"]
[BlackFideId "902098"]
[WhiteElo "2054"]
[BlackElo "2771"]
[Result "0-1"]
[Round "3"]
[TimeControl "180+1"]
[Date "2023.10.31"]
[WhiteClock "0:00:10"]
[BlackClock "0:00:56"]
[Board "132"]

1. d4 {[%clk 0:03:00]}  Nf6 {[%clk 0:02:59]} 2. Bg5 {[%clk 0:03:00]}  d5 {[%clk 0:02:57]} 3. Bxf6 {[%clk 0:02:57]}  gxf6 {[%clk 0:02:55]} 4. e3 {[%clk 0:02:58]}  c5 {[%clk 0:02:54]} 5. c4 {[%clk 0:02:59]}  dxc4 {[%clk 0:02:52]} 6. Bxc4 {[%clk 0:02:59]}  cxd4 {[%clk 0:02:52]} 7. exd4 {[%clk 0:02:47]}  Bg7 {[%clk 0:02:51]} 8. Nf3 {[%clk 0:02:43]}  O-O {[%clk 0:02:44]} 9. h3 {[%clk 0:02:43]}  f5 {[%clk 0:02:43]} 10. O-O {[%clk 0:02:35]}  Nc6 {[%clk 0:02:42]} 11. d5 {[%clk 0:02:33]}  Bxb2 {[%clk 0:02:41]} 12. Qc2 {[%clk 0:02:20]}  Bxa1 {[%clk 0:02:37]} 13. dxc6 {[%clk 0:02:20]}  bxc6 {[%clk 0:02:35]} 14. Nc3 {[%clk 0:02:18]}  Bxc3 {[%clk 0:02:25]} 15. Qxc3 {[%clk 0:02:18]}  Qd6 {[%clk 0:02:20]} 16. Re1 {[%clk 0:02:02]}  Be6 {[%clk 0:01:53]} 17. Bxe6 {[%clk 0:01:36]}  fxe6 {[%clk 0:01:54]} 18. Ne5 {[%clk 0:01:36]}  Rf6 {[%clk 0:01:53]} 19. Re3 {[%clk 0:01:32]}  f4 {[%clk 0:01:52]} 20. Rd3 {[%clk 0:01:31]}  Qb8 {[%clk 0:01:35]} 21. Rd7 {[%clk 0:00:58]}  Qe8 {[%clk 0:00:58]} 22. Qxc6 {[%clk 0:00:40]}  Rd8 {[%clk 0:00:57]} 23. Rxd8 {[%clk 0:00:26]}  Qxd8 {[%clk 0:00:57]} 24. f3 {[%clk 0:00:16]}  Qd4+ {[%clk 0:00:55]} 25. Kh2 {[%clk 0:00:10]}  Qxe5 {[%clk 0:00:56]} 0-1


[Site "https://www.chess.com"]

[Event "Titled Tuesday Blitz October 31 Late 2023"]
[White "Harriott, Tyrell"]
[Black "Kozusek, Daniel"]
[WhiteFideId "2086484"]
[BlackFideId "349500"]
[WhiteElo "2307"]
[BlackElo "2583"]
[Result "0-1"]
[Round "3"]
[TimeControl "180+1"]
[Date "2023.10.31"]
[WhiteClock "0:00:28"]
[BlackClock "0:00:06"]
[Board "137"]

1. d4 {[%clk 0:03:00]}  d5 {[%clk 0:02:53]} 2. e3 {[%clk 0:03:01]}  Nf6 {[%clk 0:02:46]} 3. Bd3 {[%clk 0:03:01]}  c5 {[%clk 0:02:33]} 4. c3 {[%clk 0:02:56]}  Nc6 {[%clk 0:02:32]} 5. f4 {[%clk 0:02:56]}  Bg4 {[%clk 0:02:30]} 6. Ne2 {[%clk 0:02:50]}  e6 {[%clk 0:02:27]} 7. Nd2 {[%clk 0:02:47]}  Bd6 {[%clk 0:02:23]} 8. O-O {[%clk 0:02:46]}  O-O {[%clk 0:02:22]} 9. Nf3 {[%clk 0:02:43]}  Bf5 {[%clk 0:02:15]} 10. Ng3 {[%clk 0:02:42]}  Bg6 {[%clk 0:02:10]} 11. Ne5 {[%clk 0:02:41]}  Bxe5 {[%clk 0:02:03]} 12. fxe5 {[%clk 0:02:40]}  Nd7 {[%clk 0:02:03]} 13. Bxg6 {[%clk 0:02:35]}  fxg6 {[%clk 0:02:01]} 14. Qg4 {[%clk 0:02:32]}  Rxf1+ {[%clk 0:01:58]} 15. Nxf1 {[%clk 0:02:33]}  Qe7 {[%clk 0:01:58]} 16. Bd2 {[%clk 0:02:33]}  Rf8 {[%clk 0:01:57]} 17. Ng3 {[%clk 0:02:32]}  Nb6 {[%clk 0:01:56]} 18. b3 {[%clk 0:02:30]}  Nd7 {[%clk 0:01:56]} 19. Rc1 {[%clk 0:02:26]}  b5 {[%clk 0:01:34]} 20. h4 {[%clk 0:02:18]}  c4 {[%clk 0:01:19]} 21. Ra1 {[%clk 0:02:13]}  a5 {[%clk 0:01:15]} 22. bxc4 {[%clk 0:02:09]}  bxc4 {[%clk 0:01:12]} 23. Bc1 {[%clk 0:02:08]}  Qf7 {[%clk 0:01:03]} 24. Ba3 {[%clk 0:02:03]}  Qf2+ {[%clk 0:00:44]} 25. Kh2 {[%clk 0:01:58]}  Re8 {[%clk 0:00:44]} 26. e4 {[%clk 0:01:47]}  Nxd4 {[%clk 0:00:34]} 27. exd5 {[%clk 0:01:23]}  Nxe5 {[%clk 0:00:28]} 28. Qxd4 {[%clk 0:01:16]}  Nf3+ {[%clk 0:00:16]} 29. Kh3 {[%clk 0:01:11]}  Nxd4 {[%clk 0:00:17]} 30. cxd4 {[%clk 0:01:11]}  Qxd4 {[%clk 0:00:18]} 31. Re1 {[%clk 0:01:06]}  Qxd5 {[%clk 0:00:17]} 32. Bb2 {[%clk 0:01:04]}  e5 {[%clk 0:00:17]} 33. Ne4 {[%clk 0:01:01]}  Qe6+ {[%clk 0:00:15]} 34. Kh2 {[%clk 0:01:01]}  Qg4 {[%clk 0:00:15]} 35. g3 {[%clk 0:00:58]}  Rf8 {[%clk 0:00:12]} 36. Bxe5 {[%clk 0:00:56]}  Re8 {[%clk 0:00:11]} 37. Nf2 {[%clk 0:00:46]}  Qf3 {[%clk 0:00:10]} 38. Nh3 {[%clk 0:00:41]}  c3 {[%clk 0:00:08]} 39. Ng5 {[%clk 0:00:37]}  Qf2+ {[%clk 0:00:09]} 40. Kh3 {[%clk 0:00:33]}  Qxe1 {[%clk 0:00:09]} 41. Bd4 {[%clk 0:00:32]}  h5 {[%clk 0:00:08]} 42. Nf3 {[%clk 0:00:28]}  Qh1+ {[%clk 0:00:07]} 43. Nh2 {[%clk 0:00:28]}  Re2 {[%clk 0:00:06]} 44. Bg1 {[%clk 0:00:28]}  Qg2# {[%clk 0:00:06]} 0-1


[Site "https://www.chess.com"]

[Event "Titled Tuesday Blitz October 31 Late 2023"]
[White "Bazilius, Augustinas"]
[Black "Schut, Han"]
[WhiteFideId "12832251"]
[BlackFideId "1005561"]
[WhiteElo "2513"]
[BlackElo "2285"]
[Result "0-1"]
[Round "3"]
[TimeControl "180+1"]
[Date "2023.10.31"]
[WhiteClock "0:00:02"]
[BlackClock "0:00:39"]
[Board "140"]

1. d4 {[%clk 0:02:57]}  Nf6 {[%clk 0:02:59]} 2. c4 {[%clk 0:02:58]}  g6 {[%clk 0:03:00]} 3. Nf3 {[%clk 0:02:59]}  Bg7 {[%clk 0:03:00]} 4. g3 {[%clk 0:02:59]}  O-O {[%clk 0:03:00]} 5. Bg2 {[%clk 0:02:53]}  d5 {[%clk 0:03:00]} 6. O-O {[%clk 0:02:54]}  dxc4 {[%clk 0:03:00]} 7. Na3 {[%clk 0:02:51]}  c3 {[%clk 0:03:00]} 8. bxc3 {[%clk 0:02:52]}  c5 {[%clk 0:03:01]} 9. Bb2 {[%clk 0:02:46]}  cxd4 {[%clk 0:03:01]} 10. cxd4 {[%clk 0:02:45]}  Nc6 {[%clk 0:02:54]} 11. Ne5 {[%clk 0:02:32]}  Nxe5 {[%clk 0:02:47]} 12. dxe5 {[%clk 0:02:32]}  Qxd1 {[%clk 0:02:44]} 13. Rfxd1 {[%clk 0:02:33]}  Ng4 {[%clk 0:02:44]} 14. f4 {[%clk 0:02:02]}  Ne3 {[%clk 0:02:39]} 15. Rd3 {[%clk 0:02:02]}  Nxg2 {[%clk 0:02:39]} 16. Kxg2 {[%clk 0:02:03]}  b6 {[%clk 0:02:34]} 17. Rad1 {[%clk 0:02:00]}  Be6 {[%clk 0:02:32]} 18. Bc3 {[%clk 0:01:38]}  Rfc8 {[%clk 0:02:26]} 19. R1d2 {[%clk 0:00:55]}  h5 {[%clk 0:02:03]} 20. Bd4 {[%clk 0:00:50]}  Rc1 {[%clk 0:01:44]} 21. Nb5 {[%clk 0:00:32]}  a6 {[%clk 0:01:32]} 22. Nc7 {[%clk 0:00:32]}  Rxc7 {[%clk 0:01:30]} 23. Bxb6 {[%clk 0:00:32]}  Rb7 {[%clk 0:01:14]} 24. Bc5 {[%clk 0:00:29]}  Rc8 {[%clk 0:01:11]} 25. Rd8+ {[%clk 0:00:24]}  Rxd8 {[%clk 0:01:10]} 26. Rxd8+ {[%clk 0:00:25]}  Kh7 {[%clk 0:01:10]} 27. a4 {[%clk 0:00:21]}  f6 {[%clk 0:01:04]} 28. exf6 {[%clk 0:00:17]}  exf6 {[%clk 0:01:05]} 29. e4 {[%clk 0:00:16]}  Rd7 {[%clk 0:00:59]} 30. Ra8 {[%clk 0:00:15]}  Bc4 {[%clk 0:00:54]} 31. Rc8 {[%clk 0:00:12]}  Bd3 {[%clk 0:00:54]} 32. Rb8 {[%clk 0:00:11]}  Bxe4+ {[%clk 0:00:54]} 33. Kf2 {[%clk 0:00:12]}  f5 {[%clk 0:00:52]} 34. Re8 {[%clk 0:00:11]}  Bd4+ {[%clk 0:00:52]} 35. Bxd4 {[%clk 0:00:11]}  Rxd4 {[%clk 0:00:53]} 36. a5 {[%clk 0:00:11]}  Ra4 {[%clk 0:00:52]} 37. Re7+ {[%clk 0:00:12]}  Kh6 {[%clk 0:00:53]} 38. h3 {[%clk 0:00:11]}  Rxa5 {[%clk 0:00:52]} 39. g4 {[%clk 0:00:11]}  hxg4 {[%clk 0:00:53]} 40. hxg4 {[%clk 0:00:12]}  Ra3 {[%clk 0:00:50]} 41. g5+ {[%clk 0:00:07]}  Kh5 {[%clk 0:00:50]} 42. Rh7+ {[%clk 0:00:06]}  Kg4 {[%clk 0:00:50]} 43. Rh6 {[%clk 0:00:07]}  Kxf4 {[%clk 0:00:50]} 44. Rxg6 {[%clk 0:00:08]}  Rg3 {[%clk 0:00:49]} 45. Rxa6 {[%clk 0:00:07]}  Rxg5 {[%clk 0:00:49]} 46. Kf1 {[%clk 0:00:07]}  Rg3 {[%clk 0:00:48]} 47. Ra2 {[%clk 0:00:06]}  Rf3+ {[%clk 0:00:48]} 48. Kg1 {[%clk 0:00:06]}  Kg3 {[%clk 0:00:47]} 49. Rg2+ {[%clk 0:00:05]}  Kf4 {[%clk 0:00:47]} 50. Rh2 {[%clk 0:00:06]}  Rg3+ {[%clk 0:00:47]} 51. Kf1 {[%clk 0:00:05]}  Bd3+ {[%clk 0:00:44]} 52. Kf2 {[%clk 0:00:04]}  Rg4 {[%clk 0:00:42]} 53. Rh3 {[%clk 0:00:04]}  Be4 {[%clk 0:00:43]} 54. Rh8 {[%clk 0:00:04]}  Rg3 {[%clk 0:00:43]} 55. Kf1 {[%clk 0:00:04]}  Kf3 {[%clk 0:00:40]} 56. Rh2 {[%clk 0:00:05]}  f4 {[%clk 0:00:40]} 57. Rf2+ {[%clk 0:00:05]}  Kg4 {[%clk 0:00:41]} 58. Re2 {[%clk 0:00:05]}  Bd3 {[%clk 0:00:41]} 59. Kf2 {[%clk 0:00:03]}  Bxe2 {[%clk 0:00:40]} 60. Ke1 {[%clk 0:00:03]}  Ba6 {[%clk 0:00:38]} 61. Kf2 {[%clk 0:00:04]}  f3 {[%clk 0:00:38]} 62. Ke1 {[%clk 0:00:04]}  Rg2 {[%clk 0:00:39]} 63. Kd1 {[%clk 0:00:04]}  Kg3 {[%clk 0:00:38]} 64. Ke1 {[%clk 0:00:04]}  Kf4 {[%clk 0:00:38]} 65. Kd1 {[%clk 0:00:03]}  Ke3 {[%clk 0:00:39]} 66. Ke1 {[%clk 0:00:02]}  Rg1# {[%clk 0:00:39]} 0-1


[Site "https://www.chess.com"]

[Event "Titled Tuesday Blitz October 31 Late 2023"]
[White "Bilan, Danila"]
[Black "Cardozo Munar, Carlos Eduardo"]
[WhiteFideId "24161918"]
[BlackFideId "4409477"]
[WhiteElo "2468"]
[BlackElo "2260"]
[Result "1-0"]
[Round "3"]
[TimeControl "180+1"]
[Date "2023.10.31"]
[WhiteClock "0:01:13"]
[BlackClock "0:01:19"]
[Board "142"]

1. d4 {[%clk 0:03:00]}  d5 {[%clk 0:02:54]} 2. Nf3 {[%clk 0:03:00]}  c6 {[%clk 0:02:37]} 3. Bg5 {[%clk 0:02:50]}  e6 {[%clk 0:02:35]} 4. Bxd8 {[%clk 0:02:45]}  Kxd8 {[%clk 0:02:36]} 5. Ne5 {[%clk 0:02:45]}  Ke8 {[%clk 0:02:35]} 6. e3 {[%clk 0:02:44]}  Nf6 {[%clk 0:02:35]} 7. c4 {[%clk 0:02:44]}  Nbd7 {[%clk 0:02:35]} 8. Nc3 {[%clk 0:02:44]}  Bd6 {[%clk 0:02:36]} 9. f4 {[%clk 0:02:43]}  Ke7 {[%clk 0:02:36]} 10. Bd3 {[%clk 0:02:43]}  h6 {[%clk 0:02:36]} 11. Qf3 {[%clk 0:02:41]}  g5 {[%clk 0:02:36]} 12. f5 {[%clk 0:02:38]}  Bxe5 {[%clk 0:02:35]} 13. dxe5 {[%clk 0:02:37]}  Nxe5 {[%clk 0:02:35]} 14. Qe2 {[%clk 0:02:37]}  Nxd3+ {[%clk 0:02:21]} 15. Qxd3 {[%clk 0:02:38]}  dxc4 {[%clk 0:02:21]} 16. Qxc4 {[%clk 0:02:37]}  exf5 {[%clk 0:02:21]} 17. Qc5+ {[%clk 0:02:36]}  Ke8 {[%clk 0:02:17]} 18. O-O-O {[%clk 0:02:34]}  Be6 {[%clk 0:02:17]} 19. Qe5 {[%clk 0:02:29]}  Ke7 {[%clk 0:02:12]} 20. e4 {[%clk 0:02:29]}  Nxe4 {[%clk 0:02:06]} 21. Nxe4 {[%clk 0:02:26]}  fxe4 {[%clk 0:02:07]} 22. Qc7+ {[%clk 0:02:24]}  Kf6 {[%clk 0:02:05]} 23. Rhf1+ {[%clk 0:02:23]}  Kg6 {[%clk 0:02:05]} 24. Qe5 {[%clk 0:02:21]}  Rhe8 {[%clk 0:01:53]} 25. Rf6+ {[%clk 0:02:13]}  Kh7 {[%clk 0:01:52]} 26. Qxe4+ {[%clk 0:02:03]}  Kg7 {[%clk 0:01:52]} 27. Qe5 {[%clk 0:01:45]}  Kh7 {[%clk 0:01:52]} 28. Rdf1 {[%clk 0:01:37]}  Bxa2 {[%clk 0:01:42]} 29. Rxf7+ {[%clk 0:01:29]}  Bxf7 {[%clk 0:01:42]} 30. Rxf7+ {[%clk 0:01:29]}  Kg6 {[%clk 0:01:42]} 31. Qf5+ {[%clk 0:01:22]}  Kh5 {[%clk 0:01:37]} 32. Rf6 {[%clk 0:01:15]}  Re3 {[%clk 0:01:19]} 33. g4+ {[%clk 0:01:13]} 1-0


[Site "https://www.chess.com"]

[Event "Titled Tuesday Blitz October 31 Late 2023"]
[White "Devagharan, Devina"]
[Black "Slavin, Alexey"]
[WhiteFideId "2061600"]
[BlackFideId "24104388"]
[WhiteElo "2419"]
[BlackElo "2254"]
[Result "1-0"]
[Round "3"]
[TimeControl "180+1"]
[Date "2023.10.31"]
[WhiteClock "0:00:03"]
[BlackClock "0:00:00"]
[Board "144"]

1. d4 {[%clk 0:03:00]}  Nc6 {[%clk 0:02:59]} 2. c4 {[%clk 0:03:00]}  e5 {[%clk 0:02:59]} 3. d5 {[%clk 0:03:00]}  Nce7 {[%clk 0:02:59]} 4. Nc3 {[%clk 0:03:00]}  Ng6 {[%clk 0:02:59]} 5. e4 {[%clk 0:02:58]}  Bc5 {[%clk 0:03:00]} 6. Bd3 {[%clk 0:02:39]}  Nf6 {[%clk 0:02:59]} 7. h3 {[%clk 0:02:35]}  a6 {[%clk 0:02:58]} 8. Nge2 {[%clk 0:02:31]}  O-O {[%clk 0:02:58]} 9. g4 {[%clk 0:02:26]}  d6 {[%clk 0:02:58]} 10. Ng3 {[%clk 0:02:25]}  Nf4 {[%clk 0:02:53]} 11. Qf3 {[%clk 0:02:01]}  Nxd3+ {[%clk 0:02:50]} 12. Qxd3 {[%clk 0:02:01]}  c6 {[%clk 0:02:35]} 13. g5 {[%clk 0:01:40]}  Ne8 {[%clk 0:02:29]} 14. Bd2 {[%clk 0:01:30]}  Nc7 {[%clk 0:02:26]} 15. a4 {[%clk 0:01:19]}  cxd5 {[%clk 0:02:26]} 16. cxd5 {[%clk 0:01:17]}  f6 {[%clk 0:02:15]} 17. b4 {[%clk 0:00:50]}  Bxb4 {[%clk 0:01:54]} 18. h4 {[%clk 0:00:50]}  Bc5 {[%clk 0:01:54]} 19. Nf5 {[%clk 0:00:46]}  b5 {[%clk 0:01:47]} 20. axb5 {[%clk 0:00:44]}  axb5 {[%clk 0:01:43]} 21. Rxa8 {[%clk 0:00:45]}  Nxa8 {[%clk 0:01:42]} 22. Rg1 {[%clk 0:00:43]}  g6 {[%clk 0:01:37]} 23. gxf6 {[%clk 0:00:41]}  Qxf6 {[%clk 0:01:34]} 24. Bg5 {[%clk 0:00:37]}  Qh8 {[%clk 0:01:06]} 25. Nh6+ {[%clk 0:00:37]}  Kg7 {[%clk 0:01:06]} 26. Nd1 {[%clk 0:00:37]}  Nb6 {[%clk 0:00:50]} 27. Qxb5 {[%clk 0:00:33]}  Bd7 {[%clk 0:00:47]} 28. Qa6 {[%clk 0:00:27]}  Rf3 {[%clk 0:00:41]} 29. Qb7 {[%clk 0:00:14]}  Qf8 {[%clk 0:00:29]} 30. Rg2 {[%clk 0:00:05]}  Kh8 {[%clk 0:00:24]} 31. h5 {[%clk 0:00:04]}  Bb5 {[%clk 0:00:07]} 32. hxg6 {[%clk 0:00:02]}  Bb4+ {[%clk 0:00:07]} 33. Bd2 {[%clk 0:00:03]}  Bxd2+ {[%clk 0:00:07]} 34. Kxd2 {[%clk 0:00:03]}  hxg6 {[%clk 0:00:05]} 35. Ng4 {[%clk 0:00:02]}  Rd3+ {[%clk 0:00:04]} 36. Kc2 {[%clk 0:00:02]}  Qc8+ {[%clk 0:00:03]} 37. Qxc8+ {[%clk 0:00:03]}  Nxc8 {[%clk 0:00:04]} 38. Nde3 {[%clk 0:00:03]}  Kg7 {[%clk 0:00:02]} 39. Rh2 {[%clk 0:00:04]}  Ne7 {[%clk 0:00:00]} 40. f3 {[%clk 0:00:03]} 1-0


[Site "https://www.chess.com"]

[Event "Titled Tuesday Blitz October 31 Late 2023"]
[White "Davidson, Kevin"]
[Black "Florianovitz, Derlei Alex"]
[WhiteFideId "2056810"]
[BlackFideId "2114178"]
[WhiteElo "2406"]
[BlackElo "2241"]
[Result "0-1"]
[Round "3"]
[TimeControl "180+1"]
[Date "2023.10.31"]
[WhiteClock "0:00:00"]
[BlackClock "0:00:15"]
[Board "146"]

1. e4 {[%clk 0:03:00]}  e6 {[%clk 0:02:59]} 2. d4 {[%clk 0:03:00]}  d5 {[%clk 0:02:59]} 3. Nc3 {[%clk 0:03:00]}  Nf6 {[%clk 0:02:59]} 4. Bg5 {[%clk 0:02:59]}  dxe4 {[%clk 0:02:58]} 5. Nxe4 {[%clk 0:02:59]}  Be7 {[%clk 0:02:59]} 6. Bxf6 {[%clk 0:02:57]}  gxf6 {[%clk 0:02:59]} 7. Nf3 {[%clk 0:02:57]}  b6 {[%clk 0:02:59]} 8. Qd2 {[%clk 0:02:55]}  Bb7 {[%clk 0:02:59]} 9. Qe3 {[%clk 0:02:53]}  Nd7 {[%clk 0:02:56]} 10. O-O-O {[%clk 0:02:53]}  c6 {[%clk 0:02:43]} 11. Bc4 {[%clk 0:02:35]}  Qc7 {[%clk 0:02:43]} 12. Rhe1 {[%clk 0:02:27]}  O-O-O {[%clk 0:02:42]} 13. c3 {[%clk 0:02:00]}  h6 {[%clk 0:02:40]} 14. Kb1 {[%clk 0:01:54]}  f5 {[%clk 0:02:36]} 15. Ned2 {[%clk 0:01:52]}  Bf6 {[%clk 0:02:27]} 16. Bb3 {[%clk 0:01:33]}  c5 {[%clk 0:02:25]} 17. dxc5 {[%clk 0:01:08]}  Nxc5 {[%clk 0:02:24]} 18. Bc2 {[%clk 0:01:08]}  Kb8 {[%clk 0:01:47]} 19. g3 {[%clk 0:01:07]}  h5 {[%clk 0:01:25]} 20. h4 {[%clk 0:00:54]}  a5 {[%clk 0:00:57]} 21. Ne5 {[%clk 0:00:51]}  Bxe5 {[%clk 0:00:47]} 22. Qxe5 {[%clk 0:00:49]}  Qxe5 {[%clk 0:00:48]} 23. Rxe5 {[%clk 0:00:00]}  Rd6 {[%clk 0:00:15]} 0-1


[Site "https://www.chess.com"]

[Event "Titled Tuesday Blitz October 31 Late 2023"]
[White "hristos03"]
[Black "Lukey, Stephen G"]
[BlackFideId "4300386"]
[WhiteElo "2405"]
[BlackElo "2237"]
[Result "1-0"]
[Round "3"]
[TimeControl "180+1"]
[Date "2023.10.31"]
[WhiteClock "0:00:08"]
[BlackClock "0:00:43"]
[Board "148"]

1. e4 {[%clk 0:02:52]}  e6 {[%clk 0:02:59]} 2. d4 {[%clk 0:02:51]}  d5 {[%clk 0:03:00]} 3. e5 {[%clk 0:02:49]}  c5 {[%clk 0:03:00]} 4. c3 {[%clk 0:02:48]}  Nc6 {[%clk 0:03:00]} 5. Nf3 {[%clk 0:02:45]}  Bd7 {[%clk 0:03:00]} 6. Be2 {[%clk 0:02:37]}  f6 {[%clk 0:02:58]} 7. O-O {[%clk 0:02:19]}  fxe5 {[%clk 0:02:58]} 8. dxe5 {[%clk 0:02:18]}  Nge7 {[%clk 0:02:48]} 9. Bf4 {[%clk 0:01:47]}  Ng6 {[%clk 0:02:45]} 10. Bg3 {[%clk 0:01:47]}  Be7 {[%clk 0:02:45]} 11. Na3 {[%clk 0:01:44]}  O-O {[%clk 0:02:42]} 12. Nb5 {[%clk 0:01:42]}  Nf4 {[%clk 0:02:28]} 13. Qd2 {[%clk 0:01:29]}  Nxe2+ {[%clk 0:02:27]} 14. Qxe2 {[%clk 0:01:30]}  a6 {[%clk 0:02:16]} 15. Nd6 {[%clk 0:01:24]}  Bxd6 {[%clk 0:02:04]} 16. exd6 {[%clk 0:01:25]}  e5 {[%clk 0:02:03]} 17. Nxe5 {[%clk 0:01:21]}  Nxe5 {[%clk 0:01:59]} 18. Qxe5 {[%clk 0:01:20]}  Rf5 {[%clk 0:01:55]} 19. Qe3 {[%clk 0:01:15]}  Qf8 {[%clk 0:01:50]} 20. Qxc5 {[%clk 0:01:11]}  Bc6 {[%clk 0:01:50]} 21. Rad1 {[%clk 0:00:59]}  Rd8 {[%clk 0:01:44]} 22. c4 {[%clk 0:00:41]}  dxc4 {[%clk 0:01:41]} 23. Qxc4+ {[%clk 0:00:42]}  Kh8 {[%clk 0:01:39]} 24. Rfe1 {[%clk 0:00:36]}  h6 {[%clk 0:01:28]} 25. Qg4 {[%clk 0:00:20]}  Qf6 {[%clk 0:01:18]} 26. Bh4 {[%clk 0:00:17]}  g5 {[%clk 0:01:16]} 27. Bg3 {[%clk 0:00:17]}  Kg8 {[%clk 0:01:10]} 28. a4 {[%clk 0:00:15]}  Bd7 {[%clk 0:01:06]} 29. Qc4+ {[%clk 0:00:14]}  Kh7 {[%clk 0:01:04]} 30. Re7+ {[%clk 0:00:12]}  Kg6 {[%clk 0:01:04]} 31. Qc7 {[%clk 0:00:09]}  Bxa4 {[%clk 0:00:50]} 32. Qxd8 {[%clk 0:00:07]}  Bxd1 {[%clk 0:00:50]} 33. Qe8+ {[%clk 0:00:07]}  Qf7 {[%clk 0:00:47]} 34. Rxf7 {[%clk 0:00:07]}  Rxf7 {[%clk 0:00:48]} 35. d7 {[%clk 0:00:07]}  Ba4 {[%clk 0:00:47]} 36. Qxf7+ {[%clk 0:00:07]}  Kxf7 {[%clk 0:00:43]} 37. d8=Q {[%clk 0:00:08]} 1-0


[Site "https://www.chess.com"]

[Event "Titled Tuesday Blitz October 31 Late 2023"]
[White "Palacio,Igor Da Paz"]
[Black "FuenfgegenWilly"]
[WhiteFideId "2121140"]
[WhiteElo "2232"]
[BlackElo "2402"]
[Result "1/2-1/2"]
[Round "3"]
[TimeControl "180+1"]
[Date "2023.10.31"]
[WhiteClock "0:00:06"]
[BlackClock "0:00:29"]
[Board "149"]

1. e4 {[%clk 0:03:00]}  e5 {[%clk 0:02:55]} 2. Nf3 {[%clk 0:03:00]}  d6 {[%clk 0:02:55]} 3. Bc4 {[%clk 0:02:58]}  Nf6 {[%clk 0:02:54]} 4. d3 {[%clk 0:02:55]}  Be7 {[%clk 0:02:53]} 5. c3 {[%clk 0:02:53]}  O-O {[%clk 0:02:49]} 6. Nbd2 {[%clk 0:02:52]}  c6 {[%clk 0:02:49]} 7. Bb3 {[%clk 0:02:51]}  a5 {[%clk 0:02:45]} 8. a4 {[%clk 0:02:49]}  Na6 {[%clk 0:02:42]} 9. O-O {[%clk 0:02:49]}  Be6 {[%clk 0:02:36]} 10. Bc2 {[%clk 0:02:41]}  h6 {[%clk 0:02:33]} 11. d4 {[%clk 0:02:38]}  exd4 {[%clk 0:02:30]} 12. Nxd4 {[%clk 0:02:27]}  Nc5 {[%clk 0:02:17]} 13. Nxe6 {[%clk 0:02:24]}  Nxe6 {[%clk 0:02:18]} 14. f4 {[%clk 0:02:12]}  Re8 {[%clk 0:01:54]} 15. h3 {[%clk 0:02:03]}  Bf8 {[%clk 0:01:54]} 16. Nf3 {[%clk 0:02:02]}  Nc5 {[%clk 0:01:53]} 17. e5 {[%clk 0:01:59]}  dxe5 {[%clk 0:01:51]} 18. Nxe5 {[%clk 0:01:55]}  Qb6 {[%clk 0:01:43]} 19. Kh2 {[%clk 0:01:47]}  Rad8 {[%clk 0:01:40]} 20. Qf3 {[%clk 0:01:46]}  Nb3 {[%clk 0:01:32]} 21. Nc4 {[%clk 0:01:45]}  Nxa1 {[%clk 0:01:26]} 22. Nxb6 {[%clk 0:01:45]}  Nxc2 {[%clk 0:01:26]} 23. Qf2 {[%clk 0:01:35]}  Na1 {[%clk 0:01:24]} 24. Be3 {[%clk 0:01:10]}  Nb3 {[%clk 0:01:18]} 25. Nc4 {[%clk 0:01:02]}  Ne4 {[%clk 0:01:08]} 26. Qf3 {[%clk 0:00:57]}  b5 {[%clk 0:01:07]} 27. Ne5 {[%clk 0:00:52]}  Nbd2 {[%clk 0:01:04]} 28. Bxd2 {[%clk 0:00:46]}  Nxd2 {[%clk 0:01:04]} 29. Qf2 {[%clk 0:00:43]}  Nxf1+ {[%clk 0:01:02]} 30. Qxf1 {[%clk 0:00:44]}  bxa4 {[%clk 0:00:59]} 31. Nc4 {[%clk 0:00:23]}  Re4 {[%clk 0:00:52]} 32. Kg3 {[%clk 0:00:20]}  Bc5 {[%clk 0:00:47]} 33. Kf3 {[%clk 0:00:16]}  Re7 {[%clk 0:00:37]} 34. Ne5 {[%clk 0:00:13]}  Rd2 {[%clk 0:00:32]} 35. Qc4 {[%clk 0:00:13]}  Bd6 {[%clk 0:00:29]} 36. Qxc6 {[%clk 0:00:10]}  Bxe5 {[%clk 0:00:28]} 37. fxe5 {[%clk 0:00:11]}  Rxe5 {[%clk 0:00:27]} 38. Qxa4 {[%clk 0:00:11]}  Ree2 {[%clk 0:00:27]} 39. Qxa5 {[%clk 0:00:06]}  Rxb2 {[%clk 0:00:27]} 40. Qa8+ {[%clk 0:00:06]}  Kh7 {[%clk 0:00:27]} 41. c4 {[%clk 0:00:06]}  g6 {[%clk 0:00:27]} 42. Qa7 {[%clk 0:00:04]}  Rxg2 {[%clk 0:00:27]} 43. Qxf7+ {[%clk 0:00:04]}  Kh8 {[%clk 0:00:27]} 44. Qf8+ {[%clk 0:00:04]}  Kh7 {[%clk 0:00:27]} 45. Qf7+ {[%clk 0:00:05]}  Kh8 {[%clk 0:00:28]} 46. Qf8+ {[%clk 0:00:05]}  Kh7 {[%clk 0:00:29]} 47. Qf7+ {[%clk 0:00:06]} 1/2-1/2


[Site "https://www.chess.com"]